fUST/lending_fUST_20241011
["ID","MTS","AMOUNT","RATE_DAILY","PERIOD"]
[340113090,1728592241080,-150.0,0.00048741,2]
[340113091,1728592241089,-150.0,0.00048741,2]
[340113092,1728592241100,-150.0,0.00048741,2]
[340113093,1728592241110,-500.0,0.00048773,10]
[340113094,1728592241119,-19939.0172615,0.00048779,7]
[340113095,1728592241129,-39878.034523,0.0004878,7]
[340113096,1728592241138,-19939.0172615,0.0004879,7]
[340113097,1728592241149,-160.75554345,0.00048799,30]
[340113098,1728592241158,-62717.42847912,0.000488,120]
[340113099,1728592241168,-150.112233,0.000488,15]
[340113100,1728592241177,-1500.0,0.00048833,10]
[340113101,1728592241186,-163.0,0.00048904,90]
[340113102,1728592241196,-600.0,0.0004891,2]
[340113103,1728592241205,-2000.0,0.00049,120]
[340113104,1728592241216,-233.166346,0.00049,10]
[340113105,1728592241225,-209.8716294,0.00049041,30]
[340113106,1728592241235,-209.8716294,0.00049041,30]
[340113107,1728592241250,-208.9345591,0.00049041,30]
[340113108,1728592241260,-5388.13057117,0.00049302,2]
[340113109,1728592241271,-343.890989,0.00049517,2]
[340113110,1728592241281,-1818.6927467,0.0004969,2]
[340113111,1728592241290,-19939.0172615,0.0004978,7]
[340113112,1728592241301,-5000.0,0.000498,50]
[340113113,1728592241310,-192119.44630913,0.000498,120]
[340113114,1728592241323,-8955.0,0.000498,120]
[340113163,1728592246858,-1359.61477883,0.00037879,2]
[340113164,1728592246868,-526.0,0.00039432,2]
[340113165,1728592246877,-235.0,0.00045,90]
[340113166,1728592246886,-235.0,0.00045685,90]
[340113167,1728592246895,-210.6,0.0004979,10]
[340113168,1728592246905,-63894.16998453,0.000498,120]
[340113169,1728592246922,-306960.89239625,0.000498,120]
[340113171,1728592431021,300.1,0.00039356,120]
[340113173,1728593185293,676.61517139,0.00032752,4]
[340113175,1728593337426,185.6027371,0.00031294,30]
[340113176,1728593389319,11156.1883024,0.00032819,63]
[340113201,1728593432032,-166.666666,0.00032611,2]
[340113202,1728593432042,-1930.641911,0.00032851,2]
[340113203,1728593432166,-161.016427,0.00033188,2]
[340113204,1728593432175,-161.016427,0.00033332,2]
[340113205,1728593432185,-161.016427,0.00033476,2]
[340113206,1728593432194,-161.016427,0.0003362,2]
[340113207,1728593432203,-161.016427,0.00033764,2]
[340113208,1728593432212,-161.016427,0.00033908,2]
[340113209,1728593432221,-1754.547444,0.00033979,2]
[340113210,1728593432230,-161.016427,0.00034052,2]
[340113211,1728593432239,-161.016427,0.00034197,2]
[340113212,1728593432249,-161.016427,0.00034341,2]
[340113213,1728593432258,-161.016427,0.00034485,2]
[340113214,1728593432267,-161.016427,0.00034629,2]
[340113215,1728593432277,-749.05885864,0.00034695,2]
[340113216,1728593432286,-400.0,0.00034772,2]
[340113217,1728593432295,-161.016427,0.00034773,2]
[340113218,1728593432305,-333.162695,0.00034795,2]
[340113219,1728593432315,-161.016427,0.00034917,2]
[340113220,1728593432324,-749.05885864,0.00035548,2]
[340113221,1728593432334,-2926.07208094,0.000364,2]
[340113222,1728593432344,-749.05885864,0.000364,2]
[340113223,1728593432354,-24900.0,0.00036481,2]
[340113224,1728593432363,-172.91994808,0.00036481,14]
[340113225,1728593432372,-500.0,0.000365,5]
[340113226,1728593432382,-166.666666,0.00037056,2]
[340113227,1728593432392,-188.80408818,0.00037099,2]
[340113228,1728593432401,-644.04,0.0003719,3]
[340113229,1728593432411,-500.0,0.00037199,15]
[340113230,1728593432420,-500.0,0.00037199,15]
[340113231,1728593432430,-500.0,0.00037199,15]
[340113232,1728593432440,-500.85082083,0.00037199,15]
[340113233,1728593432449,-500.0,0.00037199,15]
[340113234,1728593432459,-500.0,0.00037199,15]
[340113235,1728593432468,-500.0,0.00037199,15]
[340113236,1728593432478,-500.0,0.00037199,15]
[340113237,1728593432487,-358.31881041,0.00037199,15]
[340113238,1728593432496,-600.0,0.00037199,15]
[340113239,1728593432506,-500.0,0.00037199,15]
[340113240,1728593432515,-500.0,0.00037199,15]
[340113241,1728593432525,-500.0,0.00037199,15]
[340113242,1728593432538,-500.0,0.00037199,15]
[340113243,1728593432548,-500.0,0.00037199,15]
[340113244,1728593432557,-500.0,0.00037199,15]
[340113245,1728593432567,-500.0,0.00037199,15]
[340113246,1728593432577,-500.0,0.00037199,15]
[340113247,1728593432588,-500.0,0.00037199,15]
[340113248,1728593432600,-500.0,0.00037199,15]
[340113249,1728593432611,-500.0,0.00037199,15]
[340113250,1728593432621,-500.0,0.00037199,15]
[340113251,1728593432632,-500.0,0.00037199,15]
[340113252,1728593432644,-500.0,0.00037199,15]
[340113253,1728593432653,-500.0,0.00037199,15]
[340113254,1728593432663,-500.0,0.00037199,15]
[340113255,1728593432673,-500.0,0.00037199,15]
[340113256,1728593432682,-500.0,0.00037199,15]
[340113257,1728593432694,-500.0,0.00037199,15]
[340113258,1728593432703,-500.0,0.00037199,15]
[340113259,1728593432713,-500.0,0.00037199,15]
[340113260,1728593432722,-500.0,0.00037199,15]
[340113261,1728593432732,-500.0,0.00037199,15]
[340113262,1728593432742,-500.0,0.00037199,15]
[340113263,1728593432751,-51189.3236558,0.000372,103]
[340113264,1728593432760,-195.0,0.00037694,6]
[340113265,1728593432770,-320.0,0.00038249,2]
[340113266,1728593432779,-165.0,0.00039361,4]
[340113267,1728593432789,-5000.0,0.00039379,3]
[340113268,1728593432798,-150.0,0.00040151,2]
[340113269,1728593432808,-526.0,0.00040151,2]
[340113270,1728593432818,-1219.0,0.00040151,2]
[340113271,1728593432828,-333.162695,0.00040173,2]
[340113272,1728593432837,-195.0,0.00040176,15]
[340113273,1728593432846,-2926.07208093,0.00041108,28]
[340113274,1728593432856,-1250.0,0.00041112,2]
[340113275,1728593432866,-500.0,0.000412,10]
[340113276,1728593432878,-618.13782041,0.000412,7]
[340113277,1728593432889,-150.48766827,0.00041733,10]
[340113278,1728593432901,-12354.9284799,0.00042472,6]
[340113279,1728593432912,-2123.05775112,0.00042472,6]
[340113280,1728593432922,-2500.0,0.00042482,2]
[340113281,1728593432932,-12354.9284799,0.00042624,6]
[340113282,1728593432944,-2123.05775112,0.00042624,6]
[340113283,1728593432954,-51189.32365577,0.00042634,120]
[340113284,1728593432964,-195.0,0.00042659,31]
[340113285,1728593432974,-188.80408818,0.00043051,2]
[340113286,1728593432984,-150.0,0.00043151,2]
[340113287,1728593432994,-526.0,0.00043151,2]
[340113288,1728593433002,-1219.0,0.00043151,2]
[340113289,1728593433012,-3750.0,0.00043852,2]
[340113290,1728593433022,-400.0,0.00044658,2]
[340113291,1728593433032,-1228.16680019,0.00045,120]
[340113292,1728593433042,-195.0,0.00045141,31]
[340113293,1728593433052,-729.0688014,0.0004522,120]
[340113294,1728593433064,-729.0688014,0.0004522,120]
[340113295,1728593433074,-729.0688014,0.0004522,120]
[340113296,1728593433084,-729.0688014,0.0004522,120]
[340113297,1728593433094,-729.0688014,0.0004522,120]
[340113298,1728593433104,-729.0688014,0.0004522,120]
[340113299,1728593433114,-746.66701385,0.0004522,120]
[340113300,1728593433124,-746.66701385,0.0004522,120]
[340113301,1728593433135,-5000.0,0.00045221,2]
[340113302,1728593433145,-333.162695,0.00045552,120]
[340113303,1728593433155,-165.0,0.0004576,14]
[340113304,1728593433164,-1704.22457621,0.00045817,28]
[340113324,1728593439867,-175.5,0.0003719,10]
[340113325,1728593439878,-500.0,0.00037199,15]
[340113326,1728593439890,-500.0,0.00037199,15]
[340113327,1728593439901,-21.66925747,0.00037199,15]
[340113393,1728593445960,-478.33074253,0.00037199,15]
[340113394,1728593445969,-2290.39684961,0.00040453,2]
[340113395,1728593445984,-2773.82733439,0.00040453,2]
[340113396,1728593445995,-5064.224184,0.00041138,2]
[340113397,1728593446017,-5064.224184,0.00041823,2]
[340113398,1728593446027,-390.78151018,0.00042633,31]
[340113399,1728593446036,-500.0,0.00042633,31]
[340113400,1728593446046,-449.02959666,0.00042633,31]
[340113401,1728593446056,-308.11406917,0.00042633,31]
[340113402,1728593446065,-500.0,0.00042633,31]
[340113403,1728593446074,-500.0,0.00042633,31]
[340113404,1728593446084,-168.99463063,0.00042633,31]
[340113405,1728593446093,-500.0,0.00042633,31]
[340113406,1728593446103,-500.0,0.00042633,31]
[340113407,1728593446113,-500.0,0.00042633,31]
[340113408,1728593446123,-500.0,0.00042633,31]
[340113409,1728593446133,-500.0,0.00042633,31]
[340113410,1728593446142,-500.0,0.00042633,31]
[340113411,1728593446153,-500.0,0.00042633,31]
[340113412,1728593446162,-500.0,0.00042633,31]
[340113413,1728593446173,-500.0,0.00042633,31]
[340113414,1728593446182,-500.0,0.00042633,31]
[340113415,1728593446192,-500.0,0.00042633,31]
[340113416,1728593446202,-500.0,0.00042633,31]
[340113417,1728593446213,-500.0,0.00042633,31]
[340113418,1728593446222,-500.0,0.00042633,31]
[340113419,1728593446232,-1221.84750472,0.00045817,28]
[340113420,1728593446242,-191.333,0.0004614,120]
[340113421,1728593446252,-191.333,0.0004614,120]
[340113422,1728593446262,-191.334,0.0004614,120]
[340113423,1728593446271,-150.0,0.00046151,2]
[340113424,1728593446281,-526.0,0.00046151,2]
[340113425,1728593446291,-1219.0,0.00046151,2]
[340113426,1728593446300,-6250.0,0.00046591,2]
[340113427,1728593446310,-195.0,0.00047623,60]
[340113428,1728593446320,-1796.38057207,0.00047961,2]
[340113429,1728593446329,-176.0,0.00048,90]
[340113430,1728593446340,-173.0,0.00048,90]
[340113431,1728593446349,-12354.9284799,0.00048289,7]
[340113432,1728593446359,-2123.05775112,0.00048289,7]
[340113433,1728593446368,-8417.1912279,0.00048298,4]
[340113434,1728593446378,-5417.579999,0.000483,120]
[340113435,1728593446387,-500.0,0.0004831,7]
[340113436,1728593446396,-176.0,0.00048356,90]
[340113437,1728593446408,-165.0,0.0004874,14]
[340113438,1728593446417,-165.0,0.00049,14]
[340113439,1728593446427,-150.0,0.00049151,2]
[340113440,1728593446437,-526.0,0.00049151,2]
[340113441,1728593446446,-1070.394,0.00049151,2]
[340113442,1728593446456,-400.0,0.00049517,2]
[340113443,1728593446466,-877.52,0.0004959,10]
[340113444,1728593446477,-1000.0,0.0004959,120]
[340113445,1728593446486,-1000.0,0.00049599,120]
[340113446,1728593446496,-7815.40192904,0.000496,120]
[340113448,1728593758762,-166.666666,0.00029921,2]
[340113450,1728594069252,-3000.0,0.00029537,2]
[340113453,1728594178096,500.0,0.0003227,5]
[340113454,1728594181590,-300.0,0.00029017,2]
[340113455,1728594182723,503.76249724,0.0003227,3]
[340113456,1728594183723,-201.6044974,0.00029017,2]
[340113457,1728594184348,-300.0,0.00029536,2]
[340113458,1728594187671,510.47111005,0.0003227,5]
[340113460,1728594202991,-1311.3955026,0.00029017,2]
[340113461,1728594226394,500.0,0.0003227,5]
[340113462,1728594243815,500.29476798,0.00031162,5]
[340113463,1728594264289,500.0,0.00031162,5]
[340113465,1728594316314,322.0,0.00032359,3]
[340113466,1728594366634,502.35568202,0.00031618,5]
[340113467,1728594373295,500.0,0.00031618,5]
[340113468,1728594390287,502.32270114,0.00031618,5]
[340113470,1728594423675,500.0,0.00032017,5]
[340113471,1728594443011,200.33705205,0.00032017,5]
[340113472,1728594483168,501.23630525,0.00032215,5]
[340113473,1728594493678,10501.6892079,0.00031858,4]
[340113474,1728594497835,1879.59933856,0.00031858,4]
[340113475,1728594499760,501.19461245,0.00032215,5]
[340113476,1728594535224,500.0,0.00032215,5]
[340113477,1728594553599,500.73150484,0.00030327,5]
[340113478,1728594571293,500.0,0.00030327,5]
[340113480,1728594603144,501.46702652,0.00030327,5]
[340113481,1728594604422,500.0,0.00029578,5]
[340113524,1728594634007,206.32587791,0.00029578,5]
[340113549,1728594640176,-250.0,0.00025638,2]
[340113550,1728594640187,-291.7453674,0.00025941,2]
[340113551,1728594640197,-10381.157046,0.00026187,2]
[340113552,1728594640208,-161.270043,0.00026282,2]
[340113553,1728594640217,-2857.6747586,0.00026322,2]
[340113554,1728594640227,-2390.551238,0.00026355,2]
[340113555,1728594640238,-250.0,0.00026645,2]
[340113556,1728594640250,-2316.1899638,0.00026681,2]
[340113557,1728594640259,-300.0,0.00026717,2]
[340113558,1728594640268,-300.0,0.00026717,2]
[340113559,1728594640278,-250.0,0.00026718,2]
[340113560,1728594640287,-250.0,0.00026792,2]
[340113561,1728594640297,-3632.29391247,0.00026838,2]
[340113562,1728594640306,-250.0,0.00026865,2]
[340113563,1728594640316,-172.91994808,0.00026872,2]
[340113564,1728594640327,-10381.157046,0.00026872,2]
[340113565,1728594640337,-250.0,0.00026938,2]
[340113566,1728594640346,-3365.187636,0.00027008,2]
[340113567,1728594640355,-250.0,0.00027011,2]
[340113568,1728594640366,-250.0,0.00027084,2]
[340113569,1728594640377,-250.0,0.00027157,2]
[340113570,1728594640388,-250.0,0.0002723,2]
[340113571,1728594640398,-166.666666,0.00027299,2]
[340113572,1728594640410,-250.0,0.00027303,2]
[340113573,1728594640422,-250.0,0.00027376,2]
[340113574,1728594640433,-250.0,0.00027449,2]
[340113575,1728594640443,-250.0,0.00027522,2]
[340113576,1728594640454,-10662.3052418,0.00027528,2]
[340113577,1728594640467,-10381.157046,0.00027557,2]
[340113578,1728594640478,-250.0,0.00027595,2]
[340113579,1728594640488,-250.0,0.00027668,2]
[340113580,1728594640499,-250.0,0.00027741,2]
[340113581,1728594640510,-250.0,0.00027814,2]
[340113582,1728594640520,-250.0,0.00027888,2]
[340113583,1728594640530,-250.0,0.00027961,2]
[340113584,1728594640541,-250.0,0.00028034,2]
[340113585,1728594640551,-166.666666,0.00028539,2]
[340113586,1728594640561,-420.0,0.00028893,2]
[340113587,1728594640571,-500.0,0.00029016,2]
[340113588,1728594640582,-500.0,0.00029016,2]
[340113589,1728594640591,-314.15706126,0.00029016,2]
[340113590,1728594640602,-235.79186646,0.00029016,2]
[340113591,1728594640613,-23588.6044974,0.00029017,2]
[340113592,1728594640625,-420.0,0.00029389,2]
[340113593,1728594640635,-162.82832248,0.00029437,2]
[340113594,1728594640645,-13296.7465664,0.00029537,2]
[340113595,1728594640654,-500.0,0.00029578,2]
[340113596,1728594640664,-166.666666,0.0002978,2]
[340113597,1728594640673,-247.239075,0.00030402,2]
[340113598,1728594640682,-479.4971762,0.00030528,2]
[340113599,1728594640692,-214.8011186,0.00030589,2]
[340113600,1728594640700,-166.666666,0.0003102,2]
[340113601,1728594640710,-5423.37562935,0.0003118,2]
[340113602,1728594640719,-587.0,0.00031246,2]
[340113603,1728594640728,-162.82832248,0.0003221,2]
[340113604,1728594640737,-587.0,0.00032328,2]
[340113605,1728594640746,-5000.0,0.00032566,2]
[340113606,1728594640756,-5000.0,0.00032566,2]
[340113607,1728594640766,-5000.0,0.00032566,2]
[340113608,1728594640775,-5000.0,0.00032566,2]
[340113609,1728594640785,-5000.0,0.00032566,2]
[340113610,1728594640794,-1208.5421749,0.00032567,2]
[340113611,1728594640803,-3632.29391242,0.00032912,2]
[340113612,1728594640812,-205.68380663,0.00033231,2]
[340113613,1728594640821,-5000.0,0.00033329,2]
[340113614,1728594640831,-500.81469792,0.00033387,5]
[340113615,1728594640841,-1000.0,0.00033585,5]
[340113616,1728594640850,-756.0,0.0003379,2]
[340113617,1728594640861,-10501.6892079,0.0003458,5]
[340113618,1728594640870,-1879.59933856,0.0003458,5]
[340113619,1728594640880,-5000.0,0.00034589,2]
[340113620,1728594640889,-5000.0,0.00034589,2]
[340113621,1728594640900,-5000.0,0.00034589,2]
[340113622,1728594640912,-501.16544811,0.000346,5]
[340113623,1728594640922,-501.50460982,0.000346,5]
[340113624,1728594640931,-308.308711,0.00034795,2]
[340113625,1728594640940,-162.82832248,0.00034983,2]
[340113626,1728594640950,-303.00000303,0.00035,2]
[340113627,1728594640959,-10501.6892079,0.00035024,5]
[340113628,1728594640968,-1879.59933856,0.00035024,5]
[340113629,1728594640979,-303.00000303,0.0003535,2]
[340113630,1728594640989,-823.0,0.00035561,2]
[340113631,1728594640998,-1500.0,0.00035588,5]
[340113632,1728594641007,-303.00000303,0.000357,2]
[340113633,1728594641016,-303.00000303,0.0003605,2]
[340113634,1728594641025,-303.00000303,0.000364,2]
[340113635,1728594641034,-500.0,0.00036635,5]
[340113636,1728594641044,-161.0380659,0.00036635,5]
[340113637,1728594641053,-454.50000455,0.0003675,4]
[340113638,1728594641062,-454.50000455,0.000371,4]
[340113639,1728594641071,-215.67984842,0.00037189,15]
[340113640,1728594641080,-500.0,0.00037189,15]
[340113641,1728594641090,-500.0,0.00037189,15]
[340113642,1728594641100,-468.29624144,0.00037189,15]
[340113643,1728594641110,-273.54705713,0.00037189,15]
[340113644,1728594641119,-164.32071766,0.00037189,15]
[340113645,1728594641129,-500.0,0.00037189,15]
[340113646,1728594641137,-500.0,0.00037189,15]
[340113647,1728594641147,-500.0,0.00037189,15]
[340113648,1728594641156,-500.0,0.00037189,15]
[340113649,1728594641165,-500.0,0.00037189,15]
[340113650,1728594641174,-500.0,0.00037189,15]
[340113651,1728594641183,-500.0,0.00037189,15]
[340113652,1728594641192,-500.0,0.00037189,15]
[340113653,1728594641201,-500.0,0.00037189,15]
[340113654,1728594641210,-500.0,0.00037189,15]
[340113655,1728594641219,-500.0,0.00037189,15]
[340113656,1728594641228,-500.0,0.00037189,15]
[340113657,1728594641237,-500.0,0.00037189,15]
[340113658,1728594641247,-557.25958817,0.00037189,15]
[340113659,1728594641257,-500.0,0.00037189,15]
[340113660,1728594641268,-10501.6892079,0.0003719,5]
[340113661,1728594641277,-1879.59933856,0.0003719,5]
[340113662,1728594641286,-345.51085783,0.0003745,4]
[340113663,1728594641297,-162.82832248,0.00037756,2]
[340113664,1728594641307,-501.61698842,0.00037856,5]
[340113665,1728594641318,-500.44980819,0.00037918,5]
[340113666,1728594641328,-501.64862567,0.00037918,5]
[340113667,1728594641340,-608.2914794,0.00037918,5]
[340113668,1728594641350,-500.0,0.00037918,5]
[340113669,1728594641361,-2000.0,0.00037929,5]
[340113670,1728594641371,-5000.0,0.00037983,120]
[340113671,1728594641381,-342.61089387,0.00038424,120]
[340113672,1728594641390,-10501.6892079,0.00038544,5]
[340113673,1728594641401,-1879.59933856,0.00038544,5]
[340113674,1728594641410,-501.33984727,0.00038612,5]
[340113675,1728594641420,-606.00000606,0.00039042,6]
[340113676,1728594641430,-500.0,0.00039288,5]
[340113677,1728594641441,-5000.0,0.00039396,3]
[340113678,1728594641452,-606.00000606,0.00039432,6]
[340113679,1728594641462,-2390.551238,0.00039532,2]
[340113680,1728594641472,-150.0,0.000397,2]
[340113681,1728594641484,-10501.6892079,0.00039706,5]
[340113682,1728594641494,-1879.59933856,0.00039706,5]
[340113683,1728594641506,-5000.0,0.00039714,120]
[340113684,1728594641580,-5000.0,0.00039715,120]
[340113685,1728594641592,-5000.0,0.00039715,120]
[340113686,1728594641603,-5000.0,0.00039715,120]
[340113687,1728594641614,-4816.4339533,0.00039726,25]
[340113688,1728594641626,-500.0,0.00039726,15]
[340113689,1728594641636,-500.0,0.00039726,15]
[340113690,1728594641648,-500.0,0.00039726,15]
[340113691,1728594641660,-500.0,0.00039726,15]
[340113692,1728594641672,-500.0,0.00039726,15]
[340113693,1728594641683,-500.0,0.00039726,15]
[340113694,1728594641693,-500.0,0.00039726,15]
[340113695,1728594641704,-500.0,0.00039726,15]
[340113696,1728594641715,-500.0,0.00039726,15]
[340113697,1728594641725,-350.23137828,0.00039726,15]
[340113698,1728594641734,-500.0,0.00039726,15]
[340113699,1728594641743,-500.0,0.00039773,5]
[340113700,1728594641752,-168.05565449,0.00039773,5]
[340113701,1728594641762,-185.28977128,0.00039823,6]
[340113702,1728594641772,-150.0,0.00040151,2]
[340113703,1728594641781,-150.0,0.00040151,2]
[340113704,1728594641791,-526.0,0.00040151,2]
[340113705,1728594641801,-308.308711,0.00040173,2]
[340113706,1728594641811,-10501.6892079,0.00040305,6]
[340113707,1728594641822,-1879.59933856,0.00040305,6]
[340113708,1728594641833,-5000.0,0.00040314,120]
[340113709,1728594641842,-2500.0,0.00040521,5]
[340113710,1728594641852,-6469.28442016,0.0004073,25]
[340113711,1728594641864,-1000.0,0.00041142,10]
[340113712,1728594641875,-5000.0,0.00041383,14]
[340113713,1728594641887,-151.0,0.00042414,31]
[340113714,1728594641897,-10501.6892079,0.0004313,6]
[340113715,1728594641909,-1879.59933856,0.0004313,6]
[340113716,1728594641919,-1500.0,0.00043146,10]
[340113717,1728594641928,-150.0,0.00043151,2]
[340113718,1728594641937,-150.0,0.00043151,2]
[340113719,1728594641947,-526.0,0.00043151,2]
[340113720,1728594641956,-3000.0,0.00043316,7]
[340113721,1728594641965,-1000.0,0.00043511,7]
[340113722,1728594641975,-590.35208632,0.00044013,10]
[340113723,1728594641985,-151.0,0.00044516,31]
[340113724,1728594641995,-400.0,0.00044658,2]
[340113725,1728594642004,-1000.0,0.00044881,7]
[340113726,1728594642013,-21003.3784158,0.00045026,6]
[340113727,1728594642022,-3759.19867712,0.00045026,6]
[340113728,1728594642031,-785.17210084,0.00045487,10]
[340113729,1728594642040,-308.308711,0.00045552,120]
[340113730,1728594642049,-150.0,0.00046151,2]
[340113731,1728594642059,-526.0,0.00046151,2]
[340113732,1728594642070,-1000.0,0.00046251,7]
[340113733,1728594642079,-3500.0,0.00046285,7]
[340113734,1728594642091,-151.0,0.00046619,60]
[340113735,1728594642100,-1000.0,0.00047621,7]
[340113736,1728594642109,-186.0,0.00048,90]
[340113737,1728594642118,-5417.579999,0.000483,120]
[340113738,1728594642128,-186.0,0.00048356,90]
[340113739,1728594642137,-10501.6892079,0.00048658,7]
[340113740,1728594642146,-1879.59933856,0.00048658,7]
[340113741,1728594642155,-30713.59419346,0.00048669,120]
[340113742,1728594642164,-151.0,0.00048722,60]
[340113743,1728594642173,-1000.0,0.00048991,7]
[340113744,1728594642183,-169.0,0.00049,90]
[340113745,1728594642192,-6852.38449389,0.00049109,2]
[340113746,1728594642201,-150.0,0.00049151,2]
[340113747,1728594642213,-526.0,0.00049151,2]
[340113748,1728594642222,-2095.27430967,0.00049192,2]
[340113749,1728594642231,-10501.6892079,0.00049282,7]
[340113750,1728594642240,-1879.59933856,0.00049282,7]
[340113751,1728594642249,-8529.77571783,0.00049292,7]
[340113786,1728594646064,-3632.29391242,0.00038987,2]
[340113787,1728594646074,-1471.64123672,0.00039396,3]
[340113788,1728594646085,-1971.91349007,0.00049292,7]
[340113789,1728594646095,-1879.59933856,0.00049292,7]
[340113790,1728594646104,-10113.03252248,0.00049302,2]
[340113791,1728594646116,-152.0,0.00049303,60]
[340113792,1728594646126,-22387.14029701,0.00049373,120]
[340113793,1728594646136,-190.0,0.00049374,120]
[340113794,1728594646148,-190.0,0.00049374,120]
[340113795,1728594646159,-190.0,0.00049374,120]
[340113796,1728594646169,-190.0,0.00049374,120]
[340113797,1728594646179,-190.0,0.00049374,120]
[340113798,1728594646188,-190.0,0.00049374,120]
[340113799,1728594646197,-190.0,0.00049374,120]
[340113800,1728594646207,-190.0,0.00049374,120]
[340113801,1728594646218,-190.0,0.00049374,120]
[340113802,1728594646229,-190.0,0.00049374,120]
[340113803,1728594646239,-190.0,0.00049374,120]
[340113804,1728594646249,-190.0,0.00049374,120]
[340113805,1728594646259,-190.0,0.00049374,120]
[340113806,1728594646269,-190.0,0.00049374,120]
[340113807,1728594646278,-153.0,0.00049375,120]
[340113808,1728594646288,-153.0,0.00049375,120]
[340113809,1728594646298,-153.0,0.00049375,120]
[340113810,1728594646309,-153.0,0.00049375,120]
[340113811,1728594646319,-153.0,0.00049375,120]
[340113812,1728594646398,-153.0,0.00049375,120]
[340113813,1728594646408,-153.0,0.00049375,120]
[340113814,1728594646419,-153.0,0.00049375,120]
[340113815,1728594646430,-190.0,0.00049382,120]
[340113816,1728594646440,-190.0,0.00049382,120]
[340113817,1728594646450,-190.0,0.00049382,120]
[340113818,1728594646461,-190.0,0.00049382,120]
[340113819,1728594646473,-190.0,0.00049382,120]
[340113820,1728594646483,-190.0,0.00049382,120]
[340113821,1728594646495,-190.0,0.00049382,120]
[340113822,1728594646507,-190.0,0.00049382,120]
[340113823,1728594646517,-190.0,0.00049382,120]
[340113824,1728594646528,-190.0,0.00049382,120]
[340113825,1728594646539,-190.0,0.00049382,120]
[340113826,1728594646549,-190.0,0.00049382,120]
[340113827,1728594646559,-190.0,0.00049382,120]
[340113828,1728594646569,-10501.6892079,0.00049389,7]
[340113829,1728594646580,-1879.59933856,0.00049389,7]
[340113830,1728594646590,-4000.0,0.00049407,7]
[340113831,1728594646600,-10501.6892079,0.00049455,7]
[340113832,1728594646611,-1879.59933856,0.00049455,7]
[340113833,1728594646621,-1000.0,0.00049492,30]
[340113834,1728594646634,-400.0,0.00049517,2]
[340113835,1728594646644,-150.0,0.000496,7]
[340113836,1728594646655,-150.0,0.00049638,30]
[340113837,1728594646665,-284.159,0.00049638,30]
[340113838,1728594646675,-150.01,0.00049689,2]
[340113839,1728594646686,-2484.25567063,0.00049689,2]
[340113840,1728594646697,-5417.58,0.000497,120]
[340113841,1728594646707,-4812.04188049,0.0004978,7]
[340113842,1728594646720,-322.0,0.0004978,7]
[340113844,1728594925909,172.91994808,0.00032565,7]
[340113845,1728595051242,30606.34999319,0.00039397,90]
[340113846,1728595293118,161.0380659,0.000299,5]
[340113847,1728595333181,500.81469792,0.000299,5]
[340113848,1728595343933,500.0,0.000299,5]
[340113849,1728595344554,501.16544811,0.000299,5]
[340113850,1728595354761,501.50460982,0.000299,5]
[340113852,1728595403982,337714.37279036,0.00039398,90]
[340113853,1728595469490,500.0,0.00029192,5]
[340113854,1728595469530,1500.0,0.00032565,5]
[340113855,1728595469741,1000.0,0.00030562,5]
[340113856,1728595539087,500.0,0.00029147,5]
[340113864,1728595720862,29627.21652182,0.00014,2]
[340113865,1728595721585,70372.78347818,0.00025,2]